fUSD/lending_fUSD_20250505
["ID","MTS","AMOUNT","RATE_DAILY","PERIOD"]
[359950417,1746445852768,-457.12551117,0.00019872,2]
[359950419,1746445852778,-450.0,0.00019872,2]
[359950421,1746445852787,-450.0,0.00019872,2]
[359950423,1746445852796,-464.76,0.00019872,2]
[359950425,1746445852805,-450.0,0.00019872,2]
[359950427,1746445852814,-464.79219225,0.00019872,2]
[359950429,1746445852824,-525.00794871,0.00019872,2]
[359950431,1746445852833,-450.0,0.00019872,2]
[359950433,1746445852842,-450.0,0.00019872,2]
[359950435,1746445852851,-466.60691417,0.00019872,2]
[359950437,1746445852860,-455.07225871,0.00019872,2]
[359950439,1746445852869,-468.91223706,0.00019872,2]
[359950441,1746445852879,-450.0,0.00019872,2]
[359950443,1746445852888,-468.44883203,0.00019872,2]
[359950445,1746445852897,-454.56804679,0.00019872,2]
[359950447,1746445852906,-5099.29725375,0.00019872,2]
[359950449,1746445852915,-452.77360044,0.00019872,2]
[359950451,1746445852924,-450.0,0.00019872,2]
[359950453,1746445852933,-450.0,0.00019872,2]
[359950455,1746445852942,-450.0,0.00019872,2]
[359950457,1746445852952,-450.0,0.00019872,2]
[359950459,1746445852961,-450.0,0.00019872,2]
[359950461,1746445852971,-450.0,0.00019872,2]
[359950462,1746445852980,-450.0,0.00019872,2]
[359950464,1746445852989,-450.0,0.00019872,2]
[359950466,1746445852999,-450.0,0.00019872,2]
[359950468,1746445853008,-459.70486477,0.00019872,2]
[359950471,1746445853018,-508.7434677,0.00019872,2]
[359950473,1746445853028,-459.0907838,0.00019872,2]
[359950475,1746445853037,-450.0,0.00019872,2]
[359950477,1746445853046,-461.6675902,0.00019872,2]
[359950479,1746445853056,-918.25,0.00019872,2]
[359950481,1746445853065,-450.0,0.00019872,2]
[359950483,1746445853075,-450.0,0.00019872,2]
[359950485,1746445853083,-450.0,0.00019872,2]
[359950487,1746445853093,-450.0,0.00019872,2]
[359950489,1746445853102,-450.0,0.00019872,2]
[359950491,1746445853112,-450.0,0.00019872,2]
[359950493,1746445853121,-450.0,0.00019872,2]
[359950495,1746445853130,-466.20876886,0.00019872,2]
[359950497,1746445853139,-450.0,0.00019872,2]
[359950499,1746445853148,-450.0,0.00019872,2]
[359950501,1746445853157,-450.93532248,0.00019872,2]
[359950503,1746445853165,-463.67267312,0.00019872,2]
[359950505,1746445853174,-469.30239425,0.00019872,2]
[359950507,1746445853183,-450.0,0.00019872,2]
[359950509,1746445853192,-450.0,0.00019872,2]
[359950511,1746445853201,-450.0,0.00019872,2]
[359950513,1746445853211,-450.0,0.00019872,2]
[359950515,1746445853220,-456.34810991,0.00019872,2]
[359950517,1746445853230,-450.0,0.00019872,2]
[359950519,1746445853239,-450.0,0.00019872,2]
[359950521,1746445853247,-450.0,0.00019872,2]
[359950523,1746445853256,-555.06,0.00019872,2]
[359950525,1746445853265,-465.16253598,0.00019872,2]
[359950527,1746445853274,-450.0,0.00019872,2]
[359950529,1746445853284,-450.0,0.00019872,2]
[359950531,1746445853293,-450.0,0.00019872,2]
[359950533,1746445853302,-461.52968433,0.00019872,2]
[359950535,1746445853312,-450.0,0.00019872,2]
[359950537,1746445853321,-539.41910646,0.00019872,2]
[359950539,1746445853330,-450.0,0.00019872,2]
[359950541,1746445853339,-472.9973273,0.00019872,2]
[359950542,1746445853351,-456.1790829,0.00019872,2]
[359950545,1746445853361,-463.90501597,0.00019872,2]
[359950547,1746445853370,-450.0,0.00019872,2]
[359950549,1746445853379,-450.0,0.00019872,2]
[359950551,1746445853388,-496.72202146,0.00019872,2]
[359950552,1746445853397,-450.0,0.00019872,2]
[359950555,1746445853407,-565.07,0.00019872,2]
[359950557,1746445853417,-459.13062492,0.00019872,2]
[359950559,1746445853426,-456.8803381,0.00019872,2]
[359950561,1746445853436,-450.0,0.00019872,2]
[359950563,1746445853446,-450.0,0.00019872,2]
[359950565,1746445853454,-450.0,0.00019872,2]
[359950567,1746445853464,-456.11379525,0.00019872,2]
[359950569,1746445853473,-475.73610853,0.00019872,2]
[359950571,1746445853481,-480.24018872,0.00019872,2]
[359950573,1746445853490,-450.0,0.00019872,2]
[359950575,1746445853499,-450.0,0.00019872,2]
[359950577,1746445853508,-450.0,0.00019872,2]
[359950579,1746445853518,-500.0,0.00019872,2]
[359950581,1746445853528,-450.0,0.00019872,2]
[359950583,1746445853537,-450.0,0.00019872,2]
[359950585,1746445853545,-450.0,0.00019872,2]
[359950587,1746445853554,-459.8810777,0.00019872,2]
[359950588,1746445853563,-487.6,0.00019872,2]
[359950589,1746445853572,-450.0,0.00019872,2]
[359950590,1746445853581,-465.35533004,0.00019872,2]
[359950591,1746445853590,-482.1082104,0.00019872,2]
[359950592,1746445853599,-525.59027572,0.00019872,2]
[359950593,1746445853608,-450.0,0.00019872,2]
[359950594,1746445853617,-450.0,0.00019872,2]
[359950595,1746445853626,-477.99814962,0.00019872,2]
[359950596,1746445853636,-561.16,0.00019872,2]
[359950598,1746445853645,-450.0,0.00019872,2]
[359950600,1746445853654,-450.0,0.00019872,2]
[359950602,1746445853662,-518.56061838,0.00019872,2]
[359950604,1746445853671,-450.0,0.00019872,2]
[359950606,1746445853680,-450.0,0.00019872,2]
[359950608,1746445853690,-450.0,0.00019872,2]
[359950610,1746445853699,-450.0,0.00019872,2]
[359950612,1746445853710,-459.03964489,0.00019872,2]
[359950614,1746445853719,-458.56547933,0.00019872,2]
[359950616,1746445853728,-1091.92,0.00019872,2]
[359950618,1746445853737,-450.0,0.00019872,2]
[359950620,1746445853746,-450.0,0.00019872,2]
[359950621,1746445853755,-450.0,0.00019872,2]
[359950623,1746445853764,-450.0,0.00019872,2]
[359950625,1746445853773,-2202.92,0.00019872,2]
[359950627,1746445853782,-558.6486388,0.00019872,2]
[359950629,1746445853795,-450.0,0.00019872,2]
[359950632,1746445853804,-450.0,0.00019872,2]
[359950633,1746445853813,-461.10912373,0.00019872,2]
[359950635,1746445853822,-521.53963616,0.00019872,2]
[359950637,1746445853832,-458.05763647,0.00019872,2]
[359950640,1746445853842,-491.21,0.00019872,2]
[359950642,1746445853851,-450.0,0.00019872,2]
[359950644,1746445853860,-450.0,0.00019872,2]
[359950646,1746445853869,-587.72900707,0.00019872,2]
[359950648,1746445853878,-2166.89,0.00019872,2]
[359950650,1746445853887,-492.94121386,0.00019872,2]
[359950652,1746445853897,-39784.08,0.00019872,2]
[359950654,1746445853906,-487.64,0.00019872,2]
[359950656,1746445853914,-450.0,0.00019872,2]
[359950658,1746445853923,-774.42,0.00019872,2]
[359950660,1746445853933,-450.0,0.00019872,2]
[359950662,1746445853943,-3699.69,0.00019872,2]
[359950664,1746445853952,-450.0,0.00019872,2]
[359950666,1746445853961,-1801.95,0.00019872,2]
[359950668,1746445853970,-450.0,0.00019872,2]
[359950670,1746445853979,-500.0,0.00019872,2]
[359950672,1746445853988,-500.0,0.00019872,2]
[359950674,1746445853997,-1090.47,0.00019872,2]
[359950676,1746445854007,-450.0,0.00019872,2]
[359950678,1746445854016,-513.2,0.00019872,2]
[359950680,1746445854025,-661.84,0.00019872,2]
[359950682,1746445854035,-450.0,0.00019872,2]
[359950684,1746445854044,-1083.34,0.00019872,2]
[359950686,1746445854053,-768.14,0.00019872,2]
[359950688,1746445854062,-586.99,0.00019872,2]
[359950690,1746445854071,-450.0,0.00019872,2]
[359950692,1746445854081,-450.0,0.00019872,2]
[359950694,1746445854089,-450.0,0.00019872,2]
[359950696,1746445854099,-665.04,0.00019872,2]
[359950698,1746445854108,-639.92,0.00019872,2]
[359950699,1746445854118,-717.7,0.00019872,2]
[359950701,1746445854127,-765.98,0.00019872,2]
[359950703,1746445854137,-450.0,0.00019872,2]
[359950705,1746445854146,-500.63396549,0.00019873,2]
[359950707,1746445854155,-500.0,0.00019873,2]
[359950709,1746445854164,-500.0,0.00019873,2]
[359950711,1746445854173,-501.64427826,0.00019873,2]
[359950723,1746445854272,-500.0,0.00019873,2]
[359950725,1746445854282,-500.0,0.00019873,2]
[359950726,1746445854291,-500.0,0.00019873,2]
[359950728,1746445854300,-500.0,0.00019873,2]
[359950729,1746445854309,-500.0,0.00019873,2]
[359950731,1746445854318,-500.0,0.00019873,2]
[359950732,1746445854327,-505.279035,0.00019873,2]
[359950734,1746445854337,-500.0,0.00019873,2]
[359950735,1746445854346,-503.23488949,0.00019873,2]
[359950737,1746445854357,-43940.22339801,0.00019873,2]
[359950738,1746445854366,-12500.0,0.00019874,2]
[359950740,1746445854375,-4141.73527815,0.00019874,2]
[359950742,1746445854384,-226.74,0.0001988,2]
[359950743,1746445854395,-319.16,0.0001988,2]
[359950745,1746445854404,-450.0,0.0001988,2]
[359950746,1746445854414,-165.7642074,0.0001988,2]
[359950748,1746445854426,-450.0,0.00019881,2]
[359950750,1746445854434,-450.0,0.00019881,2]
[359950751,1746445854445,-450.0,0.00019881,2]
[359950753,1746445854454,-450.0,0.00019881,2]
[359950754,1746445854464,-535.71,0.00019881,2]
[359950756,1746445854473,-456.4,0.00019881,2]
[359950757,1746445854482,-450.0,0.00019881,2]
[359950759,1746445854491,-450.0,0.00019881,2]
[359950761,1746445854500,-174.44,0.00019881,2]
[359950763,1746445854510,-450.0,0.00019881,2]
[359950764,1746445854519,-450.0,0.00019881,2]
[359950766,1746445854529,-450.0,0.00019881,2]
[359950767,1746445854538,-450.0,0.00019881,2]
[359950769,1746445854547,-450.0,0.00019881,2]
[359950771,1746445854556,-450.0,0.00019881,2]
[359950772,1746445854565,-450.0,0.00019881,2]
[359950774,1746445854574,-450.0,0.00019881,2]
[359950776,1746445854583,-450.0,0.00019881,2]
[359950777,1746445854592,-450.0,0.00019881,2]
[359950779,1746445854601,-471.18,0.00019881,2]
[359950781,1746445854610,-450.0,0.00019881,2]
[359950782,1746445854619,-450.0,0.00019881,2]
[359950784,1746445854629,-450.0,0.00019881,2]
[359950786,1746445854638,-450.0,0.00019881,2]
[359950788,1746445854647,-494.85,0.00019881,2]
[359950789,1746445854656,-450.0,0.00019881,2]
[359950791,1746445854665,-329.29,0.00019881,2]
[359950792,1746445854673,-531.02,0.00019881,2]
[359950794,1746445854683,-531.02,0.00019881,2]
[359950796,1746445854693,-531.02,0.00019881,2]
[359950798,1746445854702,-450.0,0.00019881,2]
[359950799,1746445854711,-450.0,0.00019881,2]
[359950801,1746445854720,-450.0,0.00019881,2]
[359950803,1746445854729,-450.0,0.00019881,2]
[359950804,1746445854738,-523.05498118,0.00019881,2]
[359950806,1746445854747,-450.0,0.00019881,2]
[359950808,1746445854756,-450.0,0.00019881,2]
[359950809,1746445854765,-450.0,0.00019881,2]
[359950811,1746445854774,-450.0,0.00019881,2]
[359950813,1746445854784,-596.27,0.00019881,2]
[359950814,1746445854793,-450.0,0.00019881,2]
[359950816,1746445854803,-480.87568506,0.00019881,2]
[359950818,1746445854812,-450.0,0.00019881,2]
[359950820,1746445854821,-450.0,0.00019881,2]
[359950821,1746445854830,-450.0,0.00019881,2]
[359950823,1746445854840,-450.0,0.00019881,2]
[359950825,1746445854849,-450.0,0.00019881,2]
[359950826,1746445854858,-450.0,0.00019881,2]
[359950828,1746445854867,-450.0,0.00019881,2]
[359950829,1746445854875,-512.15869507,0.00019881,2]
[359950831,1746445854885,-450.0,0.00019881,2]
[359950833,1746445854894,-450.0,0.00019881,2]
[359950834,1746445854903,-266.06,0.00019881,2]
[359950836,1746445854912,-450.0,0.00019881,2]
[359950838,1746445854921,-509.11,0.00019881,2]
[359950839,1746445854930,-518.38152984,0.00019881,2]
[359950841,1746445854939,-450.0,0.00019881,2]
[359950843,1746445854950,-450.0,0.00019881,2]
[359950845,1746445854959,-450.0,0.00019881,2]
[359950846,1746445854968,-450.0,0.00019881,2]
[359950848,1746445854977,-357.8,0.00019881,2]
[359950850,1746445854986,-450.0,0.00019881,2]
[359950851,1746445854995,-450.0,0.00019881,2]
[359950853,1746445855005,-593.75353242,0.00019881,2]
[359950855,1746445855014,-450.0,0.00019881,2]
[359950856,1746445855023,-450.0,0.00019881,2]
[359950858,1746445855032,-450.0,0.00019881,2]
[359950860,1746445855041,-588.85,0.00019881,2]
[359950862,1746445855050,-311.78,0.00019881,2]
[359950863,1746445855060,-450.0,0.00019881,2]
[359950865,1746445855069,-450.0,0.00019881,2]
[359950867,1746445855078,-450.0,0.00019881,2]
[359950868,1746445855088,-450.0,0.00019881,2]
[359950870,1746445855098,-593.19261331,0.00019881,2]
[359950872,1746445855108,-450.0,0.00019881,2]
[359950873,1746445855118,-450.0,0.00019881,2]
[359950875,1746445855127,-154.04004369,0.00019881,2]
[359950877,1746445855136,-450.0,0.00019881,2]
[359950878,1746445855145,-562.58287846,0.00019881,2]
[359950880,1746445855155,-461.53117526,0.00019881,2]
[359950882,1746445855164,-450.0,0.00019881,2]
[359950883,1746445855173,-450.0,0.00019881,2]
[359950885,1746445855182,-450.0,0.00019881,2]
[359950887,1746445855191,-450.0,0.00019881,2]
[359950889,1746445855200,-450.0,0.00019881,2]
[359950891,1746445855209,-450.0,0.00019881,2]
[359950893,1746445855218,-450.0,0.00019881,2]
[359950895,1746445855227,-450.0,0.00019881,2]
[359950896,1746445855236,-450.0,0.00019881,2]
[359950897,1746445855245,-450.0,0.00019881,2]
[359950898,1746445855255,-450.0,0.00019881,2]
[359950899,1746445855265,-450.0,0.00019881,2]
[359950900,1746445855274,-450.0,0.00019881,2]
[359950901,1746445855283,-450.0,0.00019881,2]
[359950902,1746445855292,-450.0,0.00019881,2]
[359950903,1746445855301,-450.0,0.00019881,2]
[359950904,1746445855311,-261.18,0.00019881,2]
[359950905,1746445855320,-450.0,0.00019881,2]
[359950906,1746445855330,-450.0,0.00019881,2]
[359950907,1746445855339,-450.0,0.00019881,2]
[359950908,1746445855349,-450.0,0.00019881,2]
[359950909,1746445855360,-450.0,0.00019881,2]
[359950910,1746445855369,-450.0,0.00019881,2]
[359950912,1746445855378,-450.0,0.00019881,2]
[359950913,1746445855387,-450.0,0.00019881,2]
[359950915,1746445855397,-450.0,0.00019881,2]
[359950917,1746445855407,-178.47559223,0.00019881,2]
[359950919,1746445855416,-450.0,0.00019881,2]
[359950921,1746445855426,-450.0,0.00019881,2]
[359950923,1746445855436,-450.0,0.00019881,2]
[359950925,1746445855447,-450.0,0.00019881,2]
[359950927,1746445855456,-450.0,0.00019881,2]
[359950928,1746445855466,-450.0,0.00019881,2]
[359950931,1746445855476,-408.97,0.00019881,2]
[359950932,1746445855485,-42923.1,0.00019881,2]
[359950935,1746445855495,-42923.1,0.00019881,2]
[359950937,1746445855505,-42923.1,0.00019881,2]
[359950939,1746445855515,-450.0,0.00019881,2]
[359950941,1746445855525,-450.0,0.00019881,2]
[359950943,1746445855534,-450.0,0.00019881,2]
[359950945,1746445855543,-504.1,0.00019881,2]
[359950947,1746445855552,-450.0,0.00019881,2]
[359950949,1746445855562,-455.58,0.00019881,2]
[359950951,1746445855572,-450.0,0.00019881,2]
[359950953,1746445855581,-450.0,0.00019881,2]
[359950955,1746445855590,-450.0,0.00019881,2]
[359950958,1746445855691,-450.0,0.00019881,2]
[359950959,1746445855700,-450.0,0.00019881,2]
[359950960,1746445855709,-450.0,0.00019881,2]
[359950961,1746445855718,-450.0,0.00019881,2]
[359950962,1746445855727,-450.0,0.00019881,2]
[359950963,1746445855735,-3072.93,0.00019881,2]
[359950964,1746445855745,-450.0,0.00019881,2]
[359950965,1746445855755,-3072.93,0.00019881,2]
[359950966,1746445855764,-598.15331515,0.00019881,2]
[359950967,1746445855773,-3072.93,0.00019881,2]
[359950968,1746445855782,-450.0,0.00019881,2]
[359950969,1746445855791,-377.35,0.00019881,2]
[359950970,1746445855800,-450.0,0.00019881,2]
[359950971,1746445855809,-450.0,0.00019881,2]
[359950972,1746445855819,-450.0,0.00019881,2]
[359950974,1746445855828,-450.0,0.00019881,2]
[359950976,1746445855837,-450.0,0.00019881,2]
[359950977,1746445855847,-450.0,0.00019881,2]
[359950978,1746445855856,-450.0,0.00019881,2]
[359950979,1746445855865,-450.0,0.00019881,2]
[359950980,1746445855874,-450.0,0.00019881,2]
[359950981,1746445855884,-450.0,0.00019881,2]
[359950983,1746445855893,-450.0,0.00019881,2]
[359950985,1746445855902,-450.0,0.00019881,2]
[359950987,1746445855911,-450.0,0.00019881,2]
[359950988,1746445855920,-500.0,0.00019881,2]
[359950991,1746445855930,-500.0,0.00019881,2]
[359950993,1746445855939,-500.0,0.00019881,2]
[359950994,1746445855948,-452.54,0.00019881,2]
[359950996,1746445855958,-452.54,0.00019881,2]
[359950999,1746445855968,-452.54,0.00019881,2]
[359951001,1746445855978,-450.0,0.00019881,2]
[359951003,1746445855988,-450.0,0.00019881,2]
[359951004,1746445855998,-450.0,0.00019881,2]
[359951007,1746445856007,-450.0,0.00019881,2]
[359951008,1746445856017,-450.0,0.00019881,2]
[359951011,1746445856027,-450.0,0.00019881,2]
[359951013,1746445856036,-548.61,0.00019881,2]
[359951015,1746445856045,-450.0,0.00019881,2]
[359951017,1746445856055,-450.0,0.00019881,2]
[359951019,1746445856065,-450.0,0.00019881,2]
[359951021,1746445856075,-450.0,0.00019881,2]
[359951023,1746445856085,-450.0,0.00019881,2]
[359951024,1746445856094,-450.0,0.00019881,2]
[359951026,1746445856103,-450.0,0.00019881,2]
[359951028,1746445856112,-450.0,0.00019881,2]
[359951030,1746445856122,-450.0,0.00019881,2]
[359951032,1746445856132,-450.0,0.00019881,2]
[359951034,1746445856141,-450.0,0.00019881,2]
[359951036,1746445856151,-450.0,0.00019881,2]
[359951038,1746445856160,-450.0,0.00019881,2]
[359951040,1746445856169,-450.0,0.00019881,2]
[359951042,1746445856179,-1303.92,0.00019881,2]
[359951044,1746445856189,-1303.92,0.00019881,2]
[359951046,1746445856198,-1303.92,0.00019881,2]
[359951048,1746445856209,-450.0,0.00019881,2]
[359951050,1746445856218,-450.0,0.00019881,2]
[359951052,1746445856227,-450.0,0.00019881,2]
[359951055,1746445856238,-450.0,0.00019881,2]
[359951057,1746445856249,-450.0,0.00019881,2]
[359951059,1746445856258,-450.0,0.00019881,2]
[359951061,1746445856267,-450.0,0.00019881,2]
[359951063,1746445856277,-450.0,0.00019881,2]
[359951065,1746445856288,-450.0,0.00019881,2]
[359951067,1746445856300,-864.03,0.00019881,2]
[359951070,1746445856318,-864.03,0.00019881,2]
[359951073,1746445856336,-864.03,0.00019881,2]
[359951076,1746445856355,-450.0,0.00019881,2]
[359951078,1746445856372,-450.0,0.00019881,2]
[359951081,1746445856386,-450.0,0.00019881,2]
[359951084,1746445856404,-658.02,0.00019881,2]
[359951087,1746445856425,-658.02,0.00019881,2]
[359951090,1746445856443,-658.02,0.00019881,2]
[359951093,1746445856459,-450.0,0.00019881,2]
[359951096,1746445856476,-450.0,0.00019881,2]
[359951098,1746445856493,-450.0,0.00019881,2]
[359951101,1746445856506,-450.0,0.00019881,2]
[359951104,1746445856525,-450.0,0.00019881,2]
[359951106,1746445856537,-450.0,0.00019881,2]
[359951109,1746445856553,-450.0,0.00019881,2]
[359951111,1746445856568,-450.0,0.00019881,2]
[359951114,1746445856583,-450.0,0.00019881,2]
[359951116,1746445856597,-450.0,0.00019881,2]
[359951119,1746445856612,-450.0,0.00019881,2]
[359951121,1746445856626,-450.0,0.00019881,2]
[359951124,1746445856641,-450.0,0.00019881,2]
[359951127,1746445856655,-450.0,0.00019881,2]
[359951129,1746445856669,-450.0,0.00019881,2]
[359951132,1746445856683,-450.0,0.00019881,2]
[359951134,1746445856697,-450.0,0.00019881,2]
[359951137,1746445856711,-450.0,0.00019881,2]
[359951139,1746445856724,-450.0,0.00019881,2]
[359951142,1746445856738,-450.0,0.00019881,2]
[359951144,1746445856752,-566.72,0.00019881,2]
[359951147,1746445856766,-450.0,0.00019881,2]
[359951149,1746445856780,-450.0,0.00019881,2]
[359951151,1746445856795,-218.82229932,0.00019881,2]
[359951154,1746445856813,-2182.37,0.00019881,2]
[359951157,1746445856827,-2182.37,0.00019881,2]
[359951159,1746445856841,-2182.37,0.00019881,2]
[359951162,1746445856854,-450.0,0.00019881,2]
[359951164,1746445856869,-569.34771324,0.00019881,2]
[359951167,1746445856883,-266.58478295,0.00019881,2]
[359951169,1746445856898,-162.72646426,0.00019882,2]
[359951172,1746445856914,-12500.0,0.00019882,2]
[359951174,1746445856929,-10959.08725168,0.00019889,2]
[359951177,1746445856942,-12500.0,0.00019891,2]
[359951180,1746445856957,-450.0,0.00019893,2]
[359951182,1746445856971,-450.0,0.00019893,2]
[359951185,1746445856985,-449.58,0.00019893,2]
[359951187,1746445856998,-450.0,0.00019893,2]
[359951190,1746445857013,-527.82,0.00019893,2]
[359951192,1746445857028,-450.0,0.00019893,2]
[359951195,1746445857042,-450.0,0.00019893,2]
[359951197,1746445857056,-450.0,0.00019893,2]
[359951200,1746445857071,-471.69,0.00019893,2]
[359951202,1746445857086,-450.0,0.00019893,2]
[359951205,1746445857100,-303.39682808,0.00019893,2]
[359951207,1746445857114,-450.0,0.00019893,2]
[359951210,1746445857129,-558.88,0.00019893,2]
[359951212,1746445857144,-3843.94,0.00019893,2]
[359951215,1746445857158,-450.0,0.00019893,2]
[359951217,1746445857172,-854.02,0.00019893,2]
[359951220,1746445857181,-199.33604032,0.00019894,2]
[359951221,1746445857190,-450.0,0.00019894,2]
[359951223,1746445857199,-192.11,0.00019894,2]
[359951226,1746445857209,-158.19,0.00019894,2]
[359951228,1746445857218,-340.68,0.00019894,2]
[359951230,1746445857227,-363.72,0.00019894,2]
[359951232,1746445857237,-232.07,0.00019894,2]
[359951242,1746445857420,-284.63,0.00019894,2]
[359951243,1746445857442,-450.0,0.00019894,2]
[359951245,1746445857452,-450.0,0.00019894,2]
[359951247,1746445857461,-450.0,0.00019894,2]
[359951249,1746445857471,-450.0,0.00019894,2]
[359951251,1746445857481,-450.0,0.00019894,2]
[359951253,1746445857490,-450.0,0.00019894,2]
[359951255,1746445857499,-450.0,0.00019894,2]
[359951257,1746445857508,-500.0,0.00019894,2]
[359951259,1746445857519,-561.16,0.00019894,2]
[359951261,1746445857528,-450.0,0.00019894,2]
[359951263,1746445857537,-1091.92,0.00019894,2]
[359951265,1746445857546,-450.0,0.00019894,2]
[359951267,1746445857556,-2202.92,0.00019894,2]
[359951269,1746445857565,-450.0,0.00019894,2]
[359951271,1746445857575,-491.21,0.00019894,2]
[359951273,1746445857585,-2166.89,0.00019894,2]
[359951275,1746445857594,-39784.08,0.00019894,2]
[359951277,1746445857603,-450.0,0.00019894,2]
[359951279,1746445857612,-774.42,0.00019894,2]
[359951281,1746445857622,-3699.69,0.00019894,2]
[359951283,1746445857631,-450.0,0.00019894,2]
[359951285,1746445857640,-1801.95,0.00019894,2]
[359951287,1746445857650,-667.39,0.00019894,2]
[359951290,1746445857660,-450.0,0.00019894,2]
[359951291,1746445857669,-450.0,0.00019894,2]
[359951293,1746445857678,-450.0,0.00019894,2]
[359951295,1746445857688,-199.3360403,0.00019896,2]
[359951297,1746445857698,-199.3360403,0.00019897,2]
[359951299,1746445857707,-234.16248088,0.00019897,2]
[359951301,1746445857716,-450.0,0.00019897,2]
[359951303,1746445857726,-257.66,0.00019897,2]
[359951306,1746445857735,-207.97,0.00019897,2]
[359951308,1746445857746,-357.34,0.00019897,2]
[359951310,1746445857755,-531.02,0.00019897,2]
[359951312,1746445857765,-450.0,0.00019897,2]
[359951314,1746445857775,-420.42183192,0.00019897,2]
[359951316,1746445857784,-382.96,0.00019897,2]
[359951318,1746445857793,-404.53,0.00019897,2]
[359951320,1746445857802,-503.13,0.00019897,2]
[359951322,1746445857811,-270.59,0.00019897,2]
[359951324,1746445857821,-450.0,0.00019897,2]
[359951326,1746445857830,-348.15093681,0.00019897,2]
[359951328,1746445857839,-450.0,0.00019897,2]
[359951330,1746445857850,-450.0,0.00019897,2]
[359951332,1746445857859,-450.0,0.00019897,2]
[359951334,1746445857868,-450.0,0.00019897,2]
[359951336,1746445857878,-450.0,0.00019897,2]
[359951338,1746445857888,-450.0,0.00019897,2]
[359951340,1746445857898,-450.0,0.00019897,2]
[359951342,1746445857907,-42923.1,0.00019897,2]
[359951344,1746445857918,-450.0,0.00019897,2]
[359951346,1746445857927,-450.0,0.00019897,2]
[359951348,1746445857936,-450.0,0.00019897,2]
[359951350,1746445857946,-3072.93,0.00019897,2]
[359951352,1746445857955,-450.0,0.00019897,2]
[359951354,1746445857963,-450.0,0.00019897,2]
[359951356,1746445857973,-450.0,0.00019897,2]
[359951358,1746445857982,-500.0,0.00019897,2]
[359951360,1746445857991,-452.54,0.00019897,2]
[359951362,1746445858000,-500.0,0.00019897,2]
[359951364,1746445858010,-450.0,0.00019897,2]
[359951366,1746445858019,-450.0,0.00019897,2]
[359951368,1746445858028,-450.0,0.00019897,2]
[359951370,1746445858038,-661.84,0.00019897,2]
[359951372,1746445858047,-450.0,0.00019897,2]
[359951374,1746445858056,-450.0,0.00019897,2]
[359951376,1746445858066,-450.0,0.00019897,2]
[359951378,1746445858075,-450.0,0.00019897,2]
[359951380,1746445858085,-1303.92,0.00019897,2]
[359951381,1746445858094,-450.0,0.00019897,2]
[359951383,1746445858103,-450.0,0.00019897,2]
[359951386,1746445858114,-768.14,0.00019897,2]
[359951388,1746445858124,-864.03,0.00019897,2]
[359951389,1746445858133,-788.58785979,0.00019897,2]